bitfinex-derivatives/quotes_ETHF0:USTF0_20250326
["timestamp","ask_amount","ask_price","bid_price","bid_amount"]
[1743030123146,2.32296,2000.9,2000.8,42.47643]
[1743030123935,2.32296,2000.9,2000.8,43.14573]
[1743030125536,2.32296,2000.9,2000.8,42.47643]
[1743030126330,2.32296,2000.9,2000.8,1.67643]
[1743030127037,2.32296,2000.9,2000.8,0.99943]
[1743030127241,0.99948,2000.8,2000.7,2.44288]
[1743030127431,3.83438,2000.8,2000.7,2.44293]
[1743030129032,3.83438,2000.8,2000.7,1.4434]
[1743030129232,0.99953,2000.7,2000.6,44.0078]
[1743030129436,2.41813,2000.7,2000.6,44.0078]
[1743030129738,2.41813,2000.7,2000.6,42.1895]
[1743030133444,2.41813,2000.7,2000.6,1.3895]
[1743030136948,1.4186,2000.7,2000.6,2.38908]
[1743030137249,2.49803,2001.4,2001.2,0.99928]
[1743030137449,0.99918,2001.4,2001.3,1.3187]
[1743030137740,0.99918,2001.4,2001.3,42.1187]
[1743030137935,0.99918,2001.4,2001.3,1.3187]
[1743030138236,0.99918,2001.4,2001.3,2.31793]
[1743030138436,1.66397,2001.5,2001.3,42.1187]
[1743030138640,2.32527,2001.5,2001.4,2.31788]
[1743030138839,0.00748391,2001.6,2001.5,0.99913]
[1743030139643,2.39266391,2001.6,2001.5,2.31783]
[1743030139943,0.99918,2001.4,2001.3,40.8]
[1743030140147,0.99918,2001.4,2001.3,41.79923]
[1743030140550,2.32058,2001.4,2001.3,41.79923]
[1743030141356,2.32058,2001.4,2001.3,40.8]
[1743030141653,2.32058,2001.4,2001.3,41.79923]
[1743030142652,0.99923,2001.3,2001.2,2.33943]
[1743030142957,1.3214,2001.3,2001.2,2.33943]
[1743030143247,1.00659391,2001.6,2001.2,47.8461]
[1743030143453,1.00659391,2001.6,2001.5,0.99913]
[1743030144752,2.37789391,2001.6,2001.5,0.99913]
[1743030145454,0.99913,2001.5,2001.4,2.42184]
[1743030145651,0.99918,2001.4,2001.3,3.234]
[1743030145855,1.68868,2001.4,2001.3,3.234]
[1743030146055,1.68868,2001.4,2001.3,5.65593]
[1743030147254,1.3713,2001.5,2001.4,0.99918]
[1743030147455,1.3713,2001.5,2001.4,2.31998]
[1743030147656,2.37043,2001.5,2001.4,2.98928]
[1743030148057,1.3713,2001.5,2001.4,2.98928]
[1743030148755,2.37043,2001.5,2001.4,2.98928]
[1743030152260,1.3713,2001.5,2001.4,2.98928]
[1743030153061,1.00659391,2001.6,2001.5,0.99913]
[1743030153260,2.40909391,2001.6,2001.5,3.01543]
[1743030154063,1.40998391,2001.6,2001.5,3.01543]
[1743030154368,2.40906391,2001.6,2001.5,3.01543]
[1743030154754,1.40998391,2001.6,2001.5,3.01543]
[1743030156970,0.00748391,2001.6,2001.5,3.01543]
[1743030157665,3.2078,2002.3,2002.2,0.99878]
[1743030157866,4.20657,2002.3,2002.2,0.99878]
[1743030158066,3.2078,2002.3,2002.2,0.99878]
[1743030158368,4.20653,2002.3,2002.2,0.99878]
[1743030159075,6.25023,2002.3,2002.2,2.40368]
[1743030160272,6.25023,2002.3,2002.2,0.99878]
[1743030161375,0.99878,2002.2,2002.1,2.40368]
[1743030161571,1.3196,2002.2,2002.1,2.40368]
[1743030162969,0.00748391,2002.5,2002.4,0.99868]
[1743030163670,1.32708391,2002.5,2002.4,41.79868]
[1743030163878,1.32708391,2002.5,2002.4,43.21598]
[1743030164071,2.32571391,2002.5,2002.4,43.21598]
[1743030164982,2.32571391,2002.5,2002.4,40.8]
[1743030165183,2.32571391,2002.5,2002.4,0.99868]
[1743030165481,0.99868,2002.4,2002.3,2.33289]
[1743030165680,0.99873,2002.3,2002.2,4.20654]
[1743030166080,2.41593,2002.3,2002.2,5.54074]
[1743030167878,2.41593,2002.3,2002.2,4.542]
[1743030168282,2.41593,2002.3,2002.2,5.54078]
[1743030171677,3.12693,2002.3,2002.2,5.54078]
[1743030173677,2.1282,2002.3,2002.2,5.54078]
[1743030173978,1.4172,2002.3,2002.2,5.54078]
[1743030174485,1.4172,2002.3,2002.2,2.33298]
[1743030174683,1.67973391,2002.5,2002.4,0.99868]
[1743030174889,0.00748391,2002.5,2002.4,0.99868]
[1743030176180,1.39068391,2002.5,2002.4,2.40558]
[1743030176386,2.38931391,2002.5,2002.4,2.40558]
[1743030176583,1.39068391,2002.5,2002.4,2.40558]
[1743030178579,1.39068391,2002.5,2002.4,3.08408]
[1743030179283,1.39068391,2002.5,2002.4,6.31508]
[1743030180874,0.99851,2002.8,2002.5,2.49647]
[1743030181080,1.3812,2002.9,2002.8,0.99848]
[1743030182383,2.755,2002.9,2002.8,2.33778]
[1743030183488,1.3738,2002.9,2002.8,2.33778]
[1743030183988,0.00748391,2003.1,2003.0,0.99838]
[1743030184190,1.38178391,2003.1,2003.0,0.99838]
[1743030184391,1.38178391,2003.1,2003.0,2.38998]
[1743030184884,2.38011391,2003.1,2003.0,1.3916]
[1743030185376,2.38011391,2003.1,2003.0,2.38998]
[1743030186083,1.38178391,2003.1,2003.0,2.38998]
[1743030191492,0.00748391,2003.1,2003.0,3.10588]
[1743030191693,0.00748391,2003.1,2003.0,6.33488]
[1743030192887,0.00748391,2003.1,2003.0,47.13488]
[1743030195188,0.00748391,2003.1,2003.0,50.34268]
[1743030199691,3.2078,2004.2,2003.0,62.8123]
[1743030199999,1.4145,2003.7,2003.6,4.20588]
[1743030200192,1.4145,2003.7,2003.6,7.43488]
[1743030200387,4.5822,2004.2,2004.0,0.99783]
[1743030200593,2.41234,2004.1,2004.0,41.79783]
[1743030200797,2.41233,2004.1,2004.0,41.79783]
[1743030202593,2.41233,2004.1,2004.0,40.8]
[1743030202794,0.99788,2004.0,2003.9,0.00748391]
[1743030202999,2.39128,2004.0,2003.9,0.00748391]
[1743030204799,2.39128,2004.0,2003.9,1.00541391]
[1743030204999,2.39128,2004.0,2003.9,0.00748391]
[1743030215504,5.59908,2004.0,2003.9,0.00748391]
[1743030220503,5.59908,2004.0,2003.9,1.37068391]
[1743030222100,2.39128,2004.0,2003.9,2.36861391]
[1743030223709,2.39128,2004.0,2003.9,0.00748391]
[1743030237609,0.99803,2003.7,2003.6,1.3683]
[1743030238016,2.43363,2003.7,2003.6,1.3683]
[1743030243218,2.49475,2004.0,2003.7,0.99803]
[1743030243422,0.99793,2003.9,2003.8,2.0162]
[1743030243622,2.39403,2003.9,2003.8,2.0162]
[1743030243921,2.39403,2003.9,2003.8,42.8162]
[1743030244116,2.39403,2003.9,2003.8,43.81418]
[1743030248119,0.99793,2003.9,2003.8,43.81418]
[1743030249418,0.99793,2003.9,2003.8,3.01418]
[1743030249619,0.99793,2003.9,2003.8,1.3496]
[1743030249814,0.99808,2003.6,2003.5,2.43401]
[1743030250524,0.99808,2003.6,2003.5,1.4359]
[1743030250915,0.99808,2003.6,2003.5,2.43403]
[1743030251116,0.99808,2003.6,2003.5,3.76073]
[1743030251916,0.99808,2003.6,2003.5,2.7626]
[1743030252626,0.99808,2003.6,2003.5,2.0438]
[1743030252825,0.99808,2003.6,2003.5,3.04193]
[1743030253119,0.99808,2003.6,2003.5,2.0438]
[1743030253918,0.99813,2003.5,2003.4,0.00748391]
[1743030254120,0.99833,2003.1,2003.0,2.1287]
[1743030254513,0.99833,2003.1,2003.0,1.4282]
[1743030254820,2.35143,2003.1,2003.0,1.4282]
[1743030257324,1.3531,2003.1,2002.8,40.80748391]
[1743030257527,4.20623,2002.9,2002.8,0.00748391]
[1743030258025,4.88683,2002.9,2002.8,0.00748391]
[1743030258925,4.88683,2002.9,2002.8,1.34498391]
[1743030259521,1.67903,2002.9,2002.8,1.34498391]
[1743030259830,1.67903,2002.9,2002.8,2.34346391]
[1743030260028,0.99843,2002.9,2002.8,2.34346391]
[1743030260225,0.99843,2002.9,2002.8,3.01446391]
[1743030260626,0.99843,2002.9,2002.8,43.81446391]
[1743030261128,2.3475,2003.0,2002.9,0.99843]
[1743030261329,0.9984,2003.0,2002.9,0.99843]
[1743030261525,0.9984,2003.0,2002.9,2.33593]
[1743030261921,0.9984,2003.0,2002.9,43.13593]
[1743030265730,0.9984,2003.0,2002.9,42.1375]
[1743030266128,0.99843,2002.9,2002.8,0.00748391]
[1743030266334,3.04453,2002.9,2002.8,0.00748391]
[1743030268435,3.04453,2002.9,2002.8,1.42078391]
[1743030269523,3.04453,2002.9,2002.8,2.41926391]
[1743030269726,3.04453,2002.9,2002.8,1.42078391]
[1743030269928,0.99838,2003.1,2003.0,0.99834]
[1743030270129,2.43988,2003.1,2003.0,0.99834]
[1743030270533,0.99838,2003.0,2002.9,2.41169]
[1743030270834,2.43988,2003.0,2002.9,2.41169]
[1743030274637,2.43988,2003.0,2002.9,1.4133]
[1743030274835,0.99843,2002.9,2002.8,1.00593391]
[1743030275037,3.06583,2002.9,2002.8,2.38373391]
[1743030276142,3.06583,2002.9,2002.8,0.00748391]
[1743030276741,3.06583,2002.9,2002.8,1.38528391]
[1743030278341,3.06583,2002.9,2002.8,2.38376391]
[1743030285849,3.06583,2002.9,2002.8,1.38528391]
[1743030286051,3.06583,2002.9,2002.8,2.38376391]
[1743030286551,3.06583,2002.9,2002.8,1.38528391]
[1743030286755,6.27363,2002.9,2002.8,1.38528391]
[1743030287052,6.27363,2002.9,2002.8,0.00748391]
[1743030287246,8.5022,2002.9,2002.2,51.31475]
[1743030287449,0.99868,2002.4,2002.3,2.32892]
[1743030287646,0.99868,2002.4,2002.3,42.1302]
[1743030288248,1.71568,2002.4,2002.3,42.1302]
[1743030288849,1.71568,2002.4,2002.3,40.8]
[1743030289043,0.99883,2002.1,2002.0,5.2305]
[1743030289248,0.99893,2001.9,2001.8,4.22596]
[1743030289549,0.99893,2001.9,2001.8,42.1211]
[1743030289945,2.43743,2001.9,2001.8,42.1211]
[1743030290346,2.43743,2001.9,2001.8,43.12008]
[1743030290543,2.43743,2001.9,2001.8,42.1211]
[1743030293553,2.43743,2001.9,2001.8,43.12008]
[1743030293858,2.43743,2001.9,2001.8,42.1211]
[1743030295552,2.43743,2001.9,2001.8,43.12008]
[1743030296653,2.43743,2001.9,2001.8,42.1211]
[1743030298245,2.43743,2001.9,2001.8,40.8]
[1743030298551,0.99898,2001.8,2001.7,1.3156]
[1743030298754,2.30318,2001.8,2001.7,1.3156]
[1743030298947,2.30318,2001.8,2001.7,40.8]
[1743030300248,0.99898,2001.8,2001.7,40.8]
[1743030300452,0.99898,2001.8,2001.7,43.12823]
[1743030300957,0.99898,2001.8,2001.7,41.466]
[1743030301348,0.99898,2001.8,2001.7,42.46503]
[1743030301553,0.99898,2001.8,2001.7,43.77813]
[1743030302855,0.99898,2001.8,2001.7,42.7791]
[1743030303050,0.99898,2001.8,2001.7,40.8]
[1743030303756,0.99923,2001.3,2001.2,2.39624]
[1743030303952,0.99923,2001.3,2001.2,1.68434]
[1743030304457,0.99923,2001.3,2001.2,42.48434]
[1743030304656,0.99923,2001.3,2001.2,42.48438]
[1743030305058,0.99923,2001.3,2001.2,43.88318]
[1743030305361,0.99923,2001.3,2001.2,42.8839]
[1743030305747,1.70903,2001.3,2001.2,42.1988]
[1743030305952,1.70903,2001.3,2001.2,43.19808]
[1743030306460,1.70903,2001.3,2001.2,42.1988]
[1743030307556,1.70903,2001.3,2001.2,43.19808]
[1743030308462,0.99923,2001.3,2001.2,43.19808]
[1743030308763,2.33551,2001.4,2001.3,0.99923]
[1743030308958,0.99921,2001.4,2001.3,2.39243]
[1743030309166,0.99921,2001.4,2001.3,3.06303]
[1743030310765,2.39528,2001.5,2001.4,0.99918]
[1743030310964,2.39528,2001.5,2001.4,2.35838]
[1743030311263,2.39528,2001.5,2001.4,1.3592]
[1743030311955,2.39528,2001.5,2001.4,2.35838]
[1743030313957,5.70515,2001.9,2001.5,0.99913]
[1743030314166,2.30674,2001.7,2001.6,2.32168]
[1743030314358,3.80537,2001.7,2001.3,0.6706]
[1743030314659,0.99918,2001.4,2001.3,1.3226]
[1743030314865,0.99918,2001.4,2001.3,2.32183]
[1743030315560,2.30688,2001.4,2001.3,2.32183]
[1743030315868,1.3949,2001.5,2001.4,0.99918]
[1743030315869,0.99916,2001.5,2001.4,0.99918]
[1743030316067,0.99916,2001.5,2001.4,2.32178]
[1743030317161,2.38116,2001.5,2001.4,2.32178]
[1743030318560,1.382,2001.5,2001.4,2.32178]
[1743030318768,2.38113,2001.5,2001.4,2.32178]
[1743030318958,1.382,2001.5,2001.4,2.32178]
[1743030319165,2.38113,2001.5,2001.4,2.32178]
[1743030319469,6.82901,2001.8,2001.7,0.99903]
[1743030319769,8.13831,2001.8,2001.7,0.99903]
[1743030320066,0.99903,2001.7,2001.6,2.40235]
[1743030320366,2.30833,2001.7,2001.6,2.40235]
[1743030321665,0.99908,2001.6,2001.5,0.99908]
[1743030321866,3.02978,2001.6,2001.5,2.40238]
[1743030322362,7.52861,2001.8,2001.5,1.4033]
[1743030322564,8.13831,2001.8,2001.7,0.99903]
[1743030323068,0.99903,2001.7,2001.6,2.40233]
[1743030323255,2.99033,2001.7,2001.6,0.99903]
[1743030324568,0.99908,2001.6,2001.5,4.22709]
[1743030324868,2.32598,2001.6,2001.5,0.99909]
[1743030325068,0.99913,2001.5,2001.4,1.65374]
[1743030325266,0.99918,2001.4,2001.3,4.89168]
[1743030328168,1.71418,2001.4,2001.3,4.89168]
[1743030331969,1.71418,2001.4,2001.3,4.22718]
[1743030333273,0.99923,2001.3,2001.2,45.02724]
[1743030333477,5.56233,2001.3,2001.2,40.8]
[1743030333775,0.99943,2000.9,2000.8,3.2078]
[1743030333972,0.99948,2000.8,2000.7,0.99948]
[1743030334177,2.35478,2000.8,2000.7,41.79948]
[1743030334673,1.3553,2000.8,2000.7,41.79948]
[1743030335070,2.35478,2000.8,2000.7,41.79948]
[1743030335369,1.3553,2000.8,2000.7,41.79948]
[1743030335679,2.35478,2000.8,2000.7,41.79948]
[1743030336669,2.35478,2000.8,2000.7,43.18768]
[1743030337273,1.3553,2000.8,2000.7,43.18768]
[1743030337477,2.35478,2000.8,2000.7,43.18768]
[1743030338979,1.3553,2000.8,2000.7,43.18768]
[1743030339981,2.35478,2000.8,2000.7,43.18768]
[1743030341184,1.3553,2000.8,2000.7,43.18768]
[1743030343580,1.3553,2000.8,2000.7,46.39548]
[1743030345383,2.35478,2000.8,2000.7,46.39548]
[1743030351980,2.35478,2000.8,2000.7,40.8]
[1743030352384,3.04148,2000.8,2000.7,40.8]
[1743030352584,3.04148,2000.8,2000.7,42.1308]
[1743030352785,3.04148,2000.8,2000.7,43.13033]
[1743030353188,2.042,2000.8,2000.7,43.13033]
[1743030353393,1.3553,2000.8,2000.7,43.13033]
[1743030354285,0.00748391,2001.0,2000.9,0.99943]
[1743030354494,0.00748391,2001.0,2000.9,6.21433]
[1743030354893,0.6931,2001.4,2001.3,0.99923]
[1743030355087,2.1324,2001.4,2001.3,0.99923]
[1743030355395,1.4393,2001.4,2001.3,0.99923]
[1743030355593,1.69221,2001.6,2001.5,0.99913]
[1743030355889,3.13151,2001.6,2001.5,0.99913]
[1743030356789,3.13151,2001.6,2001.5,4.20693]
[1743030358093,1.4393,2001.6,2001.5,4.20693]
[1743030358684,2.43838,2001.6,2001.5,4.87143]
[1743030359090,1.4393,2001.6,2001.5,4.87143]
[1743030359291,2.43838,2001.6,2001.5,4.87143]
[1743030359493,1.4393,2001.6,2001.5,4.87143]
[1743030359993,1.37608391,2001.8,2001.7,0.99903]
[1743030360195,2.70058391,2001.8,2001.7,0.99903]
[1743030360497,3.69956391,2001.8,2001.7,0.99903]
[1743030360692,0.99903,2001.7,2001.6,2.33813]
[1743030360898,1.3245,2001.7,2001.6,2.33813]
[1743030361299,2.32353,2001.7,2001.6,2.33813]
[1743030363092,0.71008391,2001.8,2001.7,0.99903]
[1743030363292,2.02188391,2001.8,2001.7,3.04703]
[1743030363793,0.00748391,2001.8,2001.7,3.04703]
[1743030364891,1.31928391,2001.8,2001.7,3.04703]
[1743030365091,2.31826391,2001.8,2001.7,2.35003]
[1743030365701,0.99903,2001.7,2001.6,4.22604]
[1743030365894,1.9707,2001.7,2001.6,4.22604]
[1743030366095,1.9707,2001.7,2001.6,2.42044]
[1743030366998,2.96973,2001.7,2001.6,2.42044]
[1743030367303,1.9707,2001.7,2001.6,2.42044]
[1743030368404,2.96973,2001.7,2001.6,2.42044]
[1743030368597,1.9707,2001.7,2001.6,2.42044]
[1743030369105,2.96973,2001.7,2001.6,0.99904]
[1743030369705,1.9707,2001.7,2001.6,0.99904]
[1743030369999,2.96973,2001.7,2001.6,2.37334]
[1743030370595,1.9707,2001.7,2001.6,2.37334]
[1743030370998,2.96973,2001.7,2001.6,2.37334]
[1743030372100,2.96973,2001.7,2001.6,1.3743]
[1743030372294,0.99908,2001.6,2001.5,4.22613]
[1743030372502,0.99908,2001.6,2001.3,0.00748391]
[1743030372503,0.99913,2001.5,2001.4,2.36233]
[1743030372799,0.99913,2001.5,2001.4,0.99913]
[1743030373002,2.34503,2001.5,2001.4,0.99913]
[1743030373801,2.34503,2001.5,2001.3,1.37068391]
[1743030373802,1.3459,2001.5,2001.3,1.37068391]
[1743030374000,5.2478,2001.4,2000.7,44.027]
[1743030374205,0.99937,2001.1,2001.0,2.36257]
[1743030374599,0.99937,2001.1,2001.0,1.3632]
[1743030375006,3.01827,2001.1,2001.0,2.36258]
[1743030375214,3.01827,2001.1,2001.0,1.3632]
[1743030375709,3.01827,2001.1,2001.0,2.36258]
[1743030376006,3.01827,2001.1,2001.0,1.3632]
[1743030377809,3.01827,2001.1,2001.0,2.36258]
[1743030378410,3.01827,2001.1,2001.0,1.3632]
[1743030378605,0.99938,2001.0,2000.9,3.2078]
[1743030378811,2.32018,2001.0,2000.9,1.3097]
[1743030379311,2.32018,2001.0,2000.9,2.30913]
[1743030379503,2.32018,2001.0,2000.9,5.51693]
[1743030380209,1.3208,2001.0,2000.9,5.51693]
[1743030380404,1.68186,2001.1,2001.0,0.99938]
[1743030380605,2.99616,2001.1,2001.0,2.34208]
[1743030382712,1.9968,2001.1,2001.0,2.34208]
[1743030382919,0.99923,2001.3,2001.2,0.99923]
[1743030383104,1.3143,2001.3,2001.2,0.99923]
[1743030383304,0.6618,2001.5,2001.4,0.99918]
[1743030383504,3.12499,2001.6,2001.5,0.99913]
[1743030384107,3.12498,2001.6,2001.5,0.99913]
[1743030384310,2.1259,2001.6,2001.5,2.31623]
[1743030384511,3.12498,2001.6,2001.5,2.31623]
[1743030384705,2.1259,2001.6,2001.5,2.31623]
[1743030385102,3.12498,2001.6,2001.5,2.31623]
[1743030385315,2.1259,2001.6,2001.5,2.31623]
[1743030385516,3.12498,2001.6,2001.5,2.31623]
[1743030386112,2.1259,2001.6,2001.5,2.31623]
[1743030387723,3.12498,2001.6,2001.5,2.31623]
[1743030389009,3.12498,2001.6,2001.4,0.99913]
[1743030389319,2.36107,2001.5,2001.4,4.22618]
[1743030390320,0.99923,2001.3,2001.2,0.99926]
[1743030390617,0.99942,2001.0,2000.9,4.22639]
[1743030390813,0.99937,2001.1,2001.0,0.99934]
[1743030391015,2.42427,2001.1,2001.0,0.99934]
[1743030391216,0.99938,2001.0,2000.9,5.55049]
[1743030391427,2.42428,2001.0,2000.9,2.32349]
[1743030393123,1.4249,2001.0,2000.7,41.4682]
[1743030393319,2.41338,2000.9,2000.8,2.42174]
[1743030393620,0.99956,2000.7,2000.5,0.9996]
[1743030393822,0.99961,2000.6,2000.5,0.99963]
[1743030394021,0.99961,2000.6,2000.5,40.8]
[1743030394219,0.99973,2000.3,2000.2,1.4223]
[1743030394423,1.4139,2000.5,2000.1,0.9998]
[1743030394615,3.13168,2000.2,2000.1,0.99982]
[1743030394815,2.1319,2000.2,2000.1,43.22212]
[1743030395021,3.13168,2000.2,2000.1,43.22212]
[1743030395216,3.13168,2000.2,2000.1,42.2223]
[1743030395623,3.13168,2000.2,2000.1,43.22212]
[1743030396130,3.13168,2000.2,2000.1,42.2223]
[1743030396725,3.13168,2000.2,2000.1,40.8]
[1743030397531,2.1319,2000.2,2000.1,41.79982]
[1743030398425,3.13168,2000.2,2000.1,40.8]
[1743030399128,3.13168,2000.2,2000.1,41.79982]
[1743030399324,3.13168,2000.2,2000.1,42.1464]
[1743030399726,3.13168,2000.2,2000.1,43.14622]
[1743030401823,3.13168,2000.2,2000.1,42.1464]
[1743030402131,3.13168,2000.2,2000.1,40.8]
[1743030402324,3.13168,2000.2,2000.1,41.79982]
[1743030402725,2.1319,2000.2,2000.1,41.79982]
[1743030403127,1.4139,2000.2,2000.1,43.23832]
[1743030405021,2.41368,2000.2,2000.1,43.23832]
[1743030405231,2.41368,2000.2,2000.1,40.8]
[1743030405425,2.41368,2000.2,2000.1,41.79982]
[1743030405631,2.41368,2000.2,2000.1,40.8]
[1743030405831,2.41368,2000.2,2000.1,41.79982]
[1743030406034,2.41368,2000.2,2000.1,40.8]
[1743030406834,2.41368,2000.2,2000.1,41.79982]
[1743030407032,2.41368,2000.2,2000.1,43.17072]
[1743030407234,2.41368,2000.2,2000.1,42.1709]
[1743030407636,2.41368,2000.2,2000.1,43.17072]
[1743030407931,2.41368,2000.2,2000.1,42.1709]
[1743030408136,2.41368,2000.2,2000.1,43.17072]
[1743030408530,2.41368,2000.2,2000.1,42.1709]
[1743030408730,2.41368,2000.2,2000.1,43.17072]
[1743030411636,1.4139,2000.2,2000.1,43.17072]
[1743030411837,0.99965,2000.5,2000.4,0.99963]
[1743030412039,2.39255,2000.5,2000.4,0.99963]
[1743030413134,3.81285,2000.5,2000.4,0.99963]
[1743030413926,3.81285,2000.5,2000.4,2.36053]
[1743030414637,0.99968,2000.4,2000.3,0.9997]
[1743030414830,2.36918,2000.4,2000.3,0.9997]
[1743030415435,2.36918,2000.4,2000.3,2.3606]
[1743030419243,2.36918,2000.4,2000.3,1.3609]
[1743030419642,0.99973,2000.3,2000.2,1.3793]
[1743030419844,2.34253,2000.3,2000.2,1.3793]
[1743030420046,2.34253,2000.3,2000.2,2.37908]
[1743030421041,2.34253,2000.3,2000.2,1.3793]
[1743030421646,2.34253,2000.3,2000.2,2.37908]
[1743030422251,2.34253,2000.3,2000.2,1.3793]
[1743030423053,0.99978,2000.2,2000.1,41.79982]
[1743030423241,3.02508,2000.2,2000.1,43.16212]
[1743030426954,3.02508,2000.2,2000.1,1.3623]
[1743030427146,2.49957,2000.1,1999.5,1.3832]
[1743030427347,1.9836,2000.1,1999.6,3.2078]
[1743030427656,0.9999,2000.0,1999.8,4.20774]
[1743030427859,1.3183,2000.0,1999.9,2.686]
[1743030428062,2.31817,2000.0,1999.9,2.0174]
[1743030429550,2.31817,2000.0,1999.9,1.3028]
[1743030431459,4.5261,2000.0,1999.6,1.00005]
[1743030431664,0.99997,1999.8,1999.7,1.3422]
[1743030432160,2.34157,1999.8,1999.7,1.3422]
[1743030432364,3.05987,1999.8,1999.7,1.3422]
[1743030434663,1.3416,1999.8,1999.7,1.3422]
[1743030434852,2.34157,1999.8,1999.7,2.7135]
[1743030435458,2.34157,1999.8,1999.7,1.3422]
[1743030435763,3.04217,1999.8,1999.7,1.3422]
[1743030436959,2.34157,1999.8,1999.7,2.34222]
[1743030437266,2.34157,1999.8,1999.7,1.3422]
[1743030437468,2.34157,1999.8,1999.7,2.34222]
[1743030437763,2.34157,1999.8,1999.7,1.3422]
[1743030438067,2.34157,1999.8,1999.7,2.34222]
[1743030438269,2.34157,1999.8,1999.7,1.3422]
[1743030439762,4.5494,1999.8,1999.5,0.6518]
[1743030439963,1.00008,1999.6,1999.5,2.0856]
[1743030440564,1.00008,1999.6,1999.5,43.88573]
[1743030440765,1.00008,1999.6,1999.5,42.8856]
[1743030441167,1.00008,1999.6,1999.5,43.88573]
[1743030441872,1.00008,1999.6,1999.5,42.8856]
[1743030442564,1.70978,1999.6,1999.5,43.88573]
[1743030443373,1.70978,1999.6,1999.5,42.8856]
[1743030443761,2.37258,1999.6,1999.5,42.8856]
[1743030444475,2.37258,1999.6,1999.5,43.88573]
[1743030444672,2.37258,1999.6,1999.5,42.8856]
[1743030446776,2.37258,1999.6,1999.5,42.2338]
[1743030447173,2.37258,1999.6,1999.5,40.8]
[1743030447375,1.00018,1999.4,1999.3,1.3488]
[1743030447676,1.00018,1999.4,1999.3,2.34903]
[1743030447875,2.30367,1999.5,1999.4,1.00018]
[1743030448077,2.30367,1999.5,1999.4,2.37798]
[1743030448277,2.30367,1999.5,1999.4,3.08498]
[1743030449076,2.30367,1999.5,1999.4,2.37798]
[1743030450273,2.30367,1999.5,1999.4,1.3778]
[1743030450472,2.30367,1999.5,1999.4,2.37798]
[1743030451079,2.30367,1999.5,1999.4,1.3778]
[1743030451281,1.00018,1999.4,1999.3,41.8002]
[1743030451477,2.36498,1999.4,1999.3,43.1881]
[1743030452386,2.36498,1999.4,1999.3,42.1879]
[1743030453779,2.36498,1999.4,1999.3,40.8]
[1743030456286,2.36498,1999.4,1999.3,41.80023]
[1743030456585,2.36498,1999.4,1999.3,43.12303]
[1743030456885,2.36498,1999.4,1999.3,42.1228]
[1743030457992,2.36498,1999.4,1999.3,43.12303]
[1743030458292,2.36498,1999.4,1999.3,42.1228]
[1743030458491,2.36498,1999.4,1999.3,43.12303]
[1743030458791,2.36498,1999.4,1999.3,42.1228]
[1743030460491,2.36498,1999.4,1999.3,43.12303]
[1743030460788,2.36498,1999.4,1999.3,42.1228]
[1743030467494,1.00033,1999.1,1999.0,1.71736]
[1743030467702,1.00033,1999.1,1999.0,3.11338]
[1743030467894,1.00033,1999.1,1999.0,42.913]
[1743030468082,1.00033,1999.1,1999.0,42.196]
[1743030468283,2.41113,1999.1,1999.0,42.196]
[1743030468883,2.41113,1999.1,1999.0,43.19638]
[1743030469090,2.41113,1999.1,1999.0,42.196]
[1743030471095,2.41113,1999.1,1999.0,43.19638]
[1743030471298,2.41113,1999.1,1999.0,42.196]
[1743030471800,2.41113,1999.1,1999.0,43.19638]
[1743030472100,1.00033,1999.1,1999.0,43.19638]
[1743030472394,1.00031,1999.2,1999.1,1.00033]
[1743030472595,1.00031,1999.2,1999.1,3.00243]
[1743030480091,1.00031,1999.2,1999.1,1.3304]
[1743030480600,1.00031,1999.2,1999.1,2.33073]
[1743030480801,1.00031,1999.2,1999.1,1.3304]
[1743030482104,1.00031,1999.2,1999.1,2.33073]
[1743030483197,1.00031,1999.2,1999.1,1.3304]
[1743030483397,1.00031,1999.2,1999.1,2.33073]
[1743030484505,9.54364,1999.4,1999.1,2.33073]
[1743030484506,3.2078,1999.6,1999.5,1.00013]
[1743030484801,1.00750391,1999.7,1999.6,1.00008]
[1743030485005,1.00750391,1999.7,1999.6,2.1265]
[1743030485207,2.32240391,1999.7,1999.6,1.4231]
[1743030485503,1.00018,1999.4,1999.3,1.70358]
[1743030485897,1.00017,1999.5,1999.4,1.00013]
[1743030486097,1.00017,1999.5,1999.4,1.65533]
[1743030486298,1.00012,1999.6,1999.5,1.00008]
[1743030486799,1.00012,1999.6,1999.5,2.42318]
[1743030487204,2.32032,1999.6,1999.5,2.42318]
[1743030487599,2.32032,1999.6,1999.5,1.4231]
[1743030488505,1.00018,1999.4,1999.3,4.93362]
[1743030488707,1.00018,1999.4,1999.3,1.3369]
[1743030488902,1.00018,1999.4,1999.3,2.33713]
[1743030489104,1.69288,1999.4,1999.3,2.33713]
[1743030489409,1.69288,1999.4,1999.3,1.3369]
[1743030489702,6.40099,1999.4,1999.0,1.71994]
[1743030490007,1.00041,1999.0,1998.9,1.0004]
[1743030490607,1.00041,1999.0,1998.9,41.8004]
[1743030490807,1.00041,1999.0,1998.9,40.8]
[1743030491210,1.00041,1999.0,1998.9,43.12963]
[1743030491708,2.42161,1999.0,1998.9,43.12963]
[1743030491899,2.42161,1999.0,1998.9,42.1292]
[1743030492607,2.42161,1999.0,1998.9,43.12963]
[1743030492810,2.42158,1999.0,1998.9,43.12963]
[1743030496510,2.42158,1999.0,1998.9,42.1292]
[1743030496712,5.62938,1999.0,1998.9,40.8]